Cogmind - Beta 11 --- EXPLORER MODE // 2022.04.03 @ 19:42:40 Player: Grimbling Result: Destroyed by X-77 Beamer with Gatling Laser Performance ------------- Evolutions (5) 2500 Regions Visited (14) 2800 Robots Destroyed (158) 790 Value Destroyed (7455) 7455 Prototype IDs (19) 380 Alien Tech Used (1) 200 Bonus (5842) 5842 TOTAL SCORE: 19967 Bonus ------- Follower Combat Kills 37 Met Warlord at Base 500 MAIN.C Attacked Warlord 500 Warlord Defense Kill 4854 Friendly Fire -49 Cogmind --------- Core Integrity 0/1000 Matter 300/300 Energy 350/350 System Corruption 7% Temperature Cool (51) Movement Walking (190) Ox1 Location -5/Warlord Parts ------- > --- POWER (3) -------- Cooled Fission Core > --- PROPULSION (4) --- Carbon-fiber Leg > --- UTILITY (9) ------ Experimental Heat Sink Medium Storage Unit Experimental Optical Array Advanced Target Analyzer Centrium Light Armor Plating > --- WEAPON (2) ------- (None) > --- INVENTORY (10) --- Light Nuclear Core Reinforced Fission Core Micro Fission Core Heavy Treads Advanced Heat Sink Advanced Heat Sink Improved Coolant Injector Peak State ------------ > --- POWER ------------ Light Nuclear Core Light Nuclear Core Micro Fission Core > --- PROPULSION ------- Flexi-carbon Leg Flexi-carbon Leg Flexi-carbon Leg Armored Leg > --- UTILITY ---------- Medium Storage Unit Wardrone Bay > --- WEAPON ----------- Heavy Beamcaster Quantum Rifle > --- INVENTORY -------- Micro Fission Core Medium Treads Heavy Treads Improved Heat Sink Improved Heat Sink Improved Coolant Injector Heavy Laser Heavy Beamcaster Long-range Missile Launcher [Rating: 155] Favorites ----------- Power Light Nuclear Core Engine Angular Momentum Engine Power Core Light Nuclear Core Propulsion Flexi-carbon Leg Treads Light Treads Leg Flexi-carbon Leg Utility Improved Heat Sink Device Improved Heat Sink Storage Medium Storage Unit Processor Improved Signal Interpreter Hackware Improved Hacking Suite Protection Improved Light Armor Plating Weapon Plasma Rifle Energy Gun Plasma Rifle Energy Cannon Ion Cannon Ballistic Gun Assault Rifle Launcher Long-range Missile Launcher Build | -11 -10 -10 -9 -8 -7 -6 -6 -6 -6 -6 -5 -5 -5 -5 ------- Run | Scr Mat Min Mat Mat Fac Fac Was Fac Low Low Fac Upp Upp War Slots Evolved 11 | . 1 . 2 2 2 2 . . . . 2 . . . Power 2 | . . . 1 . . 1 . . . . . . . . Propulsion 2 | . . . . . 1 . . . . . 1 . . . Utility 7 | . 1 . 1 2 1 1 . . . . 1 . . . Weapon . | . . . . . . . . . . . . . . . Parts Attached 207 | 8 13 5 2 22 29 7 4 23 5 1 15 13 3 57 Power 33 | 1 3 1 . 4 6 2 . 3 1 . 3 2 2 5 Engine 21 | 1 3 1 . 4 3 1 . 3 1 . 2 . . 2 Core 12 | . . . . . 3 1 . . . . 1 2 2 3 Reactor . | . . . . . . . . . . . . . . . Propulsion 47 | 2 5 2 . 8 4 2 2 4 1 1 5 1 . 10 Treads 23 | 2 5 . . 5 4 2 2 . . . . . . 3 Leg 24 | . . 2 . 3 . . . 4 1 1 5 1 . 7 Wheel . | . . . . . . . . . . . . . . . Hover . | . . . . . . . . . . . . . . . Flight . | . . . . . . . . . . . . . . . Utility 78 | 3 3 1 2 7 7 3 1 11 3 . 6 5 1 25 Device 36 | . 2 1 1 5 6 1 . 3 3 . 3 2 1 8 Storage 3 | 1 . . . . . . . 1 . . . . . 1 Processor 12 | . 1 . 1 2 . 1 . 1 . . 1 2 . 3 Hackware 1 | . . . . . . . . . . . 1 . . . Protection 26 | 2 . . . . 1 1 1 6 . . 1 1 . 13 Artifact . | . . . . . . . . . . . . . . . Weapon 49 | 2 2 1 . 3 12 . 1 5 . . 1 5 . 17 Energy Gun 39 | 2 2 . . 2 11 . 1 4 . . 1 3 . 13 Energy Cannon 4 | . . . . 1 1 . . 1 . . . 1 . . Ballistic Gun 1 | . . 1 . . . . . . . . . . . . Ballistic Cannon . | . . . . . . . . . . . . . . . Launcher 5 | . . . . . . . . . . . . 1 . 4 Special Weapon . | . . . . . . . . . . . . . . . Impact Weapon . | . . . . . . . . . . . . . . . Slashing Weapon . | . . . . . . . . . . . . . . . Piercing Weapon . | . . . . . . . . . . . . . . . Special Melee Weapon . | . . . . . . . . . . . . . . . Unidentified Prototypes 18 | . . 1 . 1 4 . . 1 . . . 1 . 10 Parts Lost 51 | . . 3 . 2 6 1 6 . 3 . 3 4 1 22 Power 8 | . . . . . 2 . 1 . 1 . 1 1 . 2 Propulsion 16 | . . 2 . . 2 1 3 . . . . . . 8 Utility 22 | . . 1 . 2 2 . 2 . 2 . 2 2 1 8 Weapon 5 | . . . . . . . . . . . . 1 . 4 Highest Loss Streak 13 | . . 3 . 2 3 1 5 . 2 . 2 2 1 13 To Critical Strikes 1 | . . . . . . . . . . . . . . 1 Average Slot Usage (%) 91 | . 97 98 80 93 99 98 45 82 91 81 94 94 90 80 Engine 8 | . 11 11 . 10 10 12 4 7 11 6 10 3 . 2 Core 4 | . . . . . 3 6 2 . . . 4 12 16 13 Treads 8 | . 24 23 . 10 20 16 6 . . . . . . 2 Leg 11 | . . . 20 5 . . . 17 17 18 22 22 22 17 Device 17 | . 8 11 10 18 22 30 16 17 24 18 17 15 13 11 Storage 6 | . 12 12 10 8 7 6 2 . 6 6 5 5 5 5 Processor 10 | . 10 12 20 22 14 6 6 6 6 6 8 11 11 5 Protection 7 | . 4 . . . 5 6 2 19 12 12 11 5 5 8 Energy Gun 10 | . 23 12 10 7 10 12 4 8 6 6 11 9 11 9 Energy Cannon 2 | . . . . 5 3 . . 2 6 6 . . . . Ballistic Gun 1 | . . 11 10 2 . . . . . . . . . . Naked Turns . | . . . . . . . . . . . . . . . Heaviest Build 82 | 22 23 20 15 35 42 49 49 52 58 45 60 60 41 82 Greatest Support 121 | 40 40 40 20 42 70 68 68 58 58 54 76 76 76 121 Greatest Overweight (x) 4 | . 4 4 . 1 . 1 . 1 1 . . . . 2 Average Overweight (x) . | . . . . . . . . . . . . . . . Largest Inventory Capacity 10 | 10 10 10 10 10 10 10 10 10 10 10 10 10 10 10 Average Capacity 9 | 7 10 10 10 10 10 10 7 5 10 10 10 10 10 10 Most Carried 10 | 5 9 10 10 10 10 10 10 7 9 10 10 10 10 10 Average Carried 8 | 2 7 9 9 9 9 9 6 3 7 9 9 8 9 9 Final Capacity 10 | 10 10 10 10 10 10 10 5 10 10 10 10 10 10 10 Final Carried 10 | 5 9 10 10 10 10 10 5 7 8 10 10 8 10 8 Class Distribution -------------------- 41% | Hacker-Mutant 27% | Scavenger-Skirmisher 24% | Scavenger-Mutant 6% | Hacker-Skirmisher Dominant Class ---------------- Hacker-Mutant | -10/Materials Hacker-Mutant | -10/Mines Hacker-Skirmisher | -9/Materials Scavenger-Skirmisher | -8/Materials Scavenger-Skirmisher | -7/Factory Scavenger-Skirmisher | -6/Factory Hacker-Scout | -6/Waste Hacker-Mutant | -6/Factory Hacker-Mutant | -6/Lower Caves Hacker-Mutant | -6/Lower Caves Hacker-Mutant | -5/Factory Scavenger-Mutant | -5/Upper Caves Scavenger-Mutant | -5/Upper Caves Scavenger-Mutant | -5/Warlord Resources | -11 -10 -10 -9 -8 -7 -6 -6 -6 -6 -6 -5 -5 -5 -5 ----------- Run | Scr Mat Min Mat Mat Fac Fac Was Fac Low Low Fac Upp Upp War Matter Collected 2579 | 221 89 200 44 230 310 164 40 131 223 3 171 178 30 545 Remotely . | . . . . . . . . . . . . . . . Salvage Created 6301 | . 183 233 90 699 1449 279 . 123 514 29 616 856 219 1011 Parts 228 | . 5 14 8 27 65 8 . 5 9 4 20 32 10 21 Haulers Intercepted 2 | . 1 . . 1 . . . . . . . . . . Recyclers Shooed . | . . . . . . . . . . . . . . . Parts Field Recycled . | . . . . . . . . . . . . . . . Retrieved Matter . | . . . . . . . . . . . . . . . Parts Self-Destructed . | . . . . . . . . . . . . . . . Prevented . | . . . . . . . . . . . . . . . Kills | -11 -10 -10 -9 -8 -7 -6 -6 -6 -6 -6 -5 -5 -5 -5 ------- Run | Scr Mat Min Mat Mat Fac Fac Was Fac Low Low Fac Upp Upp War Combat Hostiles Destroyed 138 | . 2 9 1 13 27 5 . 1 8 . 10 18 6 38 Guns 81 | . 2 9 1 5 21 4 . . 4 . 9 13 5 8 Cannons 15 | . . . . 5 5 . . . 3 . . 2 . . AOE 29 | . . . . . . . . . . . . 1 . 28 Classes Destroyed 15 | . 3 2 . 1 4 . . . 1 . 1 . . 3 Worker 3 | . . . . . 2 . . 1 . . . . . . Hauler 2 | . 1 . . 1 . . . . . . . . . . Operator 2 | . . . . . 2 . . . . . . . . . Watcher 13 | . 2 . 2 3 3 . . 2 . . 1 . . . Swarmer 24 | . . 4 . 3 3 . . . . . . 6 3 5 Grunt 71 | . 2 4 1 7 12 4 . . 5 . 6 8 1 21 Brawler 3 | . . . . . 1 . . . 1 . . . . 1 Duelist 1 | . . . . . . . . . 1 . . . . . Protector 1 | . . . . . . . . . . . . . . 1 Sentry 9 | . . . . 3 4 . . . 1 . . 1 . . Demolisher 1 | . . 1 . . . . . . . . . . . . Hunter 7 | . . . . . . . . . . . 2 3 . 2 Programmer 13 | . . . . . 7 1 . 1 . . 2 . 2 . Striker 5 | . . . . . . . . . . . . . . 5 Executioner 3 | . . . . . . . . . . . . . . 3 Decomposer 1 | . . . . . . . . . . 1 . . . . Best Kill Streak 13 | . 2 3 1 4 4 2 . 1 4 . 4 6 3 13 Combat Bots Only 13 | . 2 3 1 4 4 2 . 1 4 . 4 6 3 13 Max Kills in Single Turn 6 | . 1 2 1 1 2 1 . 1 1 1 1 2 1 6 Gunslinging 1 | . . 1 . . . . . . . . . 1 . . Exploded 6 | . . . . . . . . . . . . 1 . 6 Melee . | . . . . . . . . . . . . . . . Uniques/NPCs Destroyed . | . . . . . . . . . . . . . . . Combat | -11 -10 -10 -9 -8 -7 -6 -6 -6 -6 -6 -5 -5 -5 -5 -------- Run | Scr Mat Min Mat Mat Fac Fac Was Fac Low Low Fac Upp Upp War Damage Taken 10517 | . 28 479 28 379 1282 110 203 112 500 . 605 1127 166 5498 Core 1382 | . 7 96 . 36 126 . 92 . 21 . 20 97 . 887 Absorbed by Shields . | . . . . . . . . . . . . . . . Redirected to Shielding 312 | . . . . . . . . . . . . . . 312 Core Remaining (%) 86 | 100 . 58 100 93 82 . . . . 86 . . . . Volleys Fired 393 | . 13 26 8 42 93 15 4 16 27 . 37 50 15 47 Largest 2 | . 2 2 2 2 2 2 2 2 2 . 2 2 2 2 Hottest 175 | . 100 100 70 121 121 100 100 150 140 . 150 169 169 175 Shots Fired 766 | . 26 52 16 83 186 30 8 32 55 2 74 90 30 82 Gun 624 | . 26 52 16 47 139 30 8 28 27 1 74 74 30 72 Cannon 130 | . . . . 36 47 . . 4 28 1 . 14 . . Launcher 12 | . . . . . . . . . . . . 2 . 10 Special . | . . . . . . . . . . . . . . . Kinetic 33 | . . 20 8 5 . . . . . . . . . . Thermal 703 | . 26 32 8 78 168 30 8 32 55 2 74 88 30 72 Explosive 2 | . . . . . . . . . . . . 2 . . Electromagnetic 18 | . . . . . 18 . . . . . . . . . Entropic 10 | . . . . . . . . . . . . . . 10 Robot Hit Streak 61 | . 18 28 16 36 41 26 21 48 44 9 13 54 61 26 Robot Miss Streak 4 | . 1 1 1 4 2 1 . 1 1 . 1 2 1 2 Penetration Max . | . . . . . . . . . . . . . . . Secondary Targets 14 | . . 4 . . 1 . . . . . 2 3 . 4 Max Gunslinging Chain 1 | . . 1 . . 1 . . . . . 1 1 . 1 Shots Hit Robots 655 | . 22 46 13 70 150 28 8 29 50 1 65 78 24 71 Core Hits 292 | . 8 15 5 26 81 20 1 6 13 1 27 30 7 52 Critical Kills 1 | . . . . 1 . . . . . . . . . . Critical Parts Destroyed . | . . . . . . . . . . . . . . . Critical Strikes 37 | . 4 2 1 7 5 1 . 3 2 . 5 1 1 5 Burn 36 | . 4 2 1 6 5 1 . 3 2 . 5 1 1 5 Meltdown 1 | . . . . 1 . . . . . . . . . . Melee Attacks . | . . . . . . . . . . . . . . . Impact . | . . . . . . . . . . . . . . . Slashing . | . . . . . . . . . . . . . . . Piercing . | . . . . . . . . . . . . . . . Sneak Attacks . | . . . . . . . . . . . . . . . Combat Hostiles . | . . . . . . . . . . . . . . . Follow-up Attacks . | . . . . . . . . . . . . . . . Damage Inflicted 23873 | . 274 565 168 1449 3213 675 228 676 1191 26 1463 2073 661 11211 Guns 11549 | . 274 565 168 745 2476 675 228 576 571 . 1463 1522 661 1625 Cannons 2512 | . . . . 704 737 . . 100 620 26 . 325 . . Explosions 9758 | . . . . . . . . . . . . 226 . 9532 Melee . | . . . . . . . . . . . . . . . Ramming 54 | . . . . . . . . . . . . . . 54 Kinetic 330 | . . 205 81 44 . . . . . . . . . . Thermal 13487 | . 274 360 87 1405 2969 675 228 676 1191 26 1463 1847 661 1625 Explosive 226 | . . . . . . . . . . . . 226 . . Electromagnetic 244 | . . . . . 244 . . . . . . . . . Impact . | . . . . . . . . . . . . . . . Slashing . | . . . . . . . . . . . . . . . Piercing . | . . . . . . . . . . . . . . . Entropic 9532 | . . . . . . . . . . . . . . 9532 Highest Corruption 8 | . . . . . 5 . 7 8 8 8 1 1 1 7 Average Corruption 4 | . . . . . 3 . 5 7 8 8 1 1 1 2 Corruption Purged . | . . . . . . . . . . . . . . . Corruption Blocked 1 | . . . . . . . . . . . . . . 1 Effects 119 | . . . . . 18 . 2 38 38 8 2 8 1 4 Message Errors 25 | . . . . . 3 . . 8 7 4 1 2 . . Matter Fused 22 | . . . . . 5 . . 9 5 1 . 2 . . Heat Flow Errors 21 | . . . . . 3 . . 8 7 . 1 1 1 . Energy Discharges 16 | . . . . . 3 . . 3 5 1 . 2 . 2 Data Loss (minor) 16 | . . . . . 2 . 2 3 7 . . 1 . 1 Data Loss (major) 6 | . . . . . . . . 3 3 . . . . . Misfires 5 | . . . . . 1 . . 1 1 2 . . . . Alerts 6 | . . . . . . . . 2 3 . . . . 1 Weapon Failures 2 | . . . . . 1 . . 1 . . . . . . Overload Shots . | . . . . . . . . . . . . . . . Overflow Damage 635 | . . . . 17 27 . . 16 9 . . . . 566 Projectiles 69 | . . . . 17 27 . . 16 9 . . . . . Explosions 566 | . . . . . . . . . . . . . . 566 Melee . | . . . . . . . . . . . . . . . Knockbacks 1 | . . . . . . . . . . . . . . 1 Impact 1 | . . . . . . . . . . . . . . 1 Kinetic . | . . . . . . . . . . . . . . . Secondary . | . . . . . . . . . . . . . . . Self-Inflicted Damage 9 | . . . . . . . . . . . . 9 . . Shots 1 | . . . . . . . . . . . . 1 . . Rammed . | . . . . . . . . . . . . . . . Targets Rammed 2 | . . . . . . . . . . . . . . 2 Kicked 2 | . . . . . . . . . . . . . . 2 Crushed . | . . . . . . . . . . . . . . . Highest Temperature 438 | . 168 315 1 246 438 13 . 344 240 . 215 211 172 246 Average Temperature 88 | . 67 120 1 90 105 13 . 110 62 . 31 59 78 163 Received Heat Transfer 3024 | . 24 228 18 279 555 75 . . 333 . 297 540 54 621 Effects 3 | . . 1 . 1 . . . 1 . . . . . . Energy Bleed 2 | . . 1 . 1 . . . . . . . . . . Damage (minor) 1 | . . . . . . . . 1 . . . . . . Siege Activations . | . . . . . . . . . . . . . . . Robots Corrupted . | . . . . . . . . . . . . . . . Combat Hostiles . | . . . . . . . . . . . . . . . Parts Fried . | . . . . . . . . . . . . . . . Impact Corruptions . | . . . . . . . . . . . . . . . Robots Melted 13 | . . . . 3 1 1 . 1 1 . 1 2 1 2 Combat Hostiles 13 | . . . . 3 1 1 . 1 1 . 1 2 1 2 Parts Melted 87 | . 4 3 2 8 26 3 . 3 8 . 9 10 . 11 Heat Transferred 29009 | . 1110 1221 333 2960 5888 1407 448 1661 2351 37 3750 3794 1183 2866 Parts Sabotaged . | . . . . . . . . . . . . . . . Parts Stolen . | . . . . . . . . . . . . . . . Parts Stripped . | . . . . . . . . . . . . . . . Power Chain Reactions 1 | . . . . . 1 . . . . . . . . . Missiles Intercepted . | . . . . . . . . . . . . . . . Alert | -11 -10 -10 -9 -8 -7 -6 -6 -6 -6 -6 -5 -5 -5 -5 ------- Run | Scr Mat Min Mat Mat Fac Fac Was Fac Low Low Fac Upp Upp War Peak Influence 210 | . 37 120 107 167 210 81 19 49 . . 207 . . . Initial 33 | . . 1 33 31 . . 19 . . . . . . . Average 45 | . 7 40 66 63 62 34 6 4 . . 75 . . . Maximum Alert Level 1 | . . . . . 1 . . . . . 1 . . . Low Security (%) 98 | 100 100 100 100 100 96 100 100 100 . . 94 . . . Level 1 1 | . . . . . 3 . . . . . 5 . . . Level 2 . | . . . . . . . . . . . . . . . Level 3 . | . . . . . . . . . . . . . . . Level 4 . | . . . . . . . . . . . . . . . Level 5 . | . . . . . . . . . . . . . . . High Security . | . . . . . . . . . . . . . . . Max Security . | . . . . . . . . . . . . . . . Squads Dispatched 23 | . . . 1 3 9 3 . 3 . . 4 . . . Investigation 3 | . . . . . 2 1 . . . . . . . . Extermination 9 | . . . . . 5 1 . 1 . . 2 . . . Reinforcement 8 | . . . 1 . 2 1 . 2 . . 2 . . . Assault . | . . . . . . . . . . . . . . . Garrison 3 | . . . . 3 . . . . . . . . . . Intercept . | . . . . . . . . . . . . . . . Searches Triggered . | . . . . . . . . . . . . . . . Construction Impeded 1 | . . . . . . . . . . . 1 . . . Haulers Reinforced . | . . . . . . . . . . . . . . . Active Scanning Responses . | . . . . . . . . . . . . . . . Cargo Convoy Interrupts . | . . . . . . . . . . . . . . . Stealth | -11 -10 -10 -9 -8 -7 -6 -6 -6 -6 -6 -5 -5 -5 -5 --------- Run | Scr Mat Min Mat Mat Fac Fac Was Fac Low Low Fac Upp Upp War Distress Signals 3 | . . . . . 1 . . . . . 1 . . 1 Communications Jammed . | . . . . . . . . . . . . . . . Distress Signals . | . . . . . . . . . . . . . . . Times Spotted 232 | . 4 9 5 16 37 7 6 7 10 . 15 17 6 93 Peak Tracking Total 34 | . 2 3 3 4 4 2 6 2 5 . 4 7 3 34 Tactical Retreats 13 | . . 1 . . 1 . 1 . 2 . 2 . . 6 Traps | -11 -10 -10 -9 -8 -7 -6 -6 -6 -6 -6 -5 -5 -5 -5 ------- Run | Scr Mat Min Mat Mat Fac Fac Was Fac Low Low Fac Upp Upp War Traps Triggered 20 | . 5 . . 2 6 2 . 5 . . . . . . Indirectly . | . . . . . . . . . . . . . . . Trap Hack Attempts . | . . . . . . . . . . . . . . . Triggered . | . . . . . . . . . . . . . . . Disarmed . | . . . . . . . . . . . . . . . Reprogrammed 16 | . . . . . . . . . . . 16 . . . Reused 4 | . . . . . . . . . . . 4 . . . Traps Extracted . | . . . . . . . . . . . . . . . Installed . | . . . . . . . . . . . . . . . Triggered 29 | . . . . . . . . . . . 4 . 1 24 Machines | -11 -10 -10 -9 -8 -7 -6 -6 -6 -6 -6 -5 -5 -5 -5 ---------- Run | Scr Mat Min Mat Mat Fac Fac Was Fac Low Low Fac Upp Upp War Machines Disabled 4 | . . . . . 1 . . 1 . . . 2 . . Max in Single Turn 1 | . . . . . 1 . . 1 . . . 1 . . Machines Sabotaged . | . . . . . . . . . . . . . . . Garrisons Compromised . | . . . . . . . . . . . . . . . Overloaded Fab Kills . | . . . . . . . . . . . . . . . Hacking | -11 -10 -10 -9 -8 -7 -6 -6 -6 -6 -6 -5 -5 -5 -5 --------- Run | Scr Mat Min Mat Mat Fac Fac Was Fac Low Low Fac Upp Upp War Machines Accessed 15 | . 2 . . 1 1 2 . 1 1 . 2 1 . 4 Terminals 8 | . 2 . . 1 . 2 . 1 . . 2 . . . Fabricators . | . . . . . . . . . . . . . . . Repair Stations . | . . . . . . . . . . . . . . . Recycling Units . | . . . . . . . . . . . . . . . Scanalyzers 1 | . . . . . 1 . . . . . . . . . Garrison Access . | . . . . . . . . . . . . . . . Total Hacks 39 | . 7 . . 2 5 4 . 1 1 . 10 1 . 8 Successful 29 | . 3 . . 2 3 2 . 1 1 . 8 1 . 8 Failed 10 | . 4 . . . 2 2 . . . . 2 . . . Catastrophic 1 | . . . . . . 1 . . . . . . . . Database Lockouts . | . . . . . . . . . . . . . . . Manual 4 | . 3 . . . . . . . . . . . . 1 Terminals 24 | . 7 . . 2 . 4 . 1 . . 10 . . . Fabricators . | . . . . . . . . . . . . . . . Repair Stations . | . . . . . . . . . . . . . . . Recycling Units . | . . . . . . . . . . . . . . . Scanalyzers 5 | . . . . . 5 . . . . . . . . . Garrison Access . | . . . . . . . . . . . . . . . Terminal Hacks 26 | . 3 . . 2 . 2 . 1 1 . 8 1 . 8 Record 13 | . 1 . . 2 . 2 . . . . . 1 . 7 Prototype ID Bank 1 | . . . . . . . . . . . 1 . . . Open Door 2 | . . . . . . . . . 1 . . . . 1 Open DSF 1 | . . . . . . . . 1 . . . . . . Terminal Index 1 | . 1 . . . . . . . . . . . . . Alert Level 1 | . . . . . . . . . . . 1 . . . Locate Traps 1 | . . . . . . . . . . . 1 . . . Reprogram Traps 4 | . . . . . . . . . . . 4 . . . Recall Investigation 1 | . . . . . . . . . . . 1 . . . Hauler Manifests 1 | . 1 . . . . . . . . . . . . . Fabricator Hacks . | . . . . . . . . . . . . . . . Repair Station Hacks . | . . . . . . . . . . . . . . . Recycling Unit Hacks . | . . . . . . . . . . . . . . . Scanalyzer 3 | . . . . . 3 . . . . . . . . . Insert Component 2 | . . . . . 2 . . . . . . . . . Analyze 1 | . . . . . 1 . . . . . . . . . Garrison Access Hacks . | . . . . . . . . . . . . . . . Unauthorized Hacks . | . . . . . . . . . . . . . . . Terminals . | . . . . . . . . . . . . . . . Fabricators . | . . . . . . . . . . . . . . . Repair Stations . | . . . . . . . . . . . . . . . Recycling Units . | . . . . . . . . . . . . . . . Scanalyzers . | . . . . . . . . . . . . . . . Garrison Access . | . . . . . . . . . . . . . . . Data Cores Recovered . | . . . . . . . . . . . . . . . Used . | . . . . . . . . . . . . . . . Hacking Detections 6 | . 1 . . 1 1 2 . . . . 1 . . . Full Trace Events 1 | . . . . . 1 . . . . . . . . . Feedback Events . | . . . . . . . . . . . . . . . Feedback Blocked . | . . . . . . . . . . . . . . . Robot Schematics Acquired . | . . . . . . . . . . . . . . . Robots Built . | . . . . . . . . . . . . . . . Authchips . | . . . . . . . . . . . . . . . Time . | . . . . . . . . . . . . . . . Total Robot Build Rating . | . . . . . . . . . . . . . . . Part Schematics Acquired 1 | . . . . . 1 . . . . . . . . . Parts Built . | . . . . . . . . . . . . . . . Authchips . | . . . . . . . . . . . . . . . Time . | . . . . . . . . . . . . . . . Total Part Build Rating . | . . . . . . . . . . . . . . . Parts Repaired . | . . . . . . . . . . . . . . . Time . | . . . . . . . . . . . . . . . Parts Recycled . | . . . . . . . . . . . . . . . Recycled Matter . | . . . . . . . . . . . . . . . Retrieved Matter . | . . . . . . . . . . . . . . . Retrieved Components . | . . . . . . . . . . . . . . . Parts Scanalyzed 2 | . . . . . 2 . . . . . . . . . Part Schematics Acquired 1 | . . . . . 1 . . . . . . . . . Parts Damaged . | . . . . . . . . . . . . . . . Bothacking | -11 -10 -10 -9 -8 -7 -6 -6 -6 -6 -6 -5 -5 -5 -5 ------------ Run | Scr Mat Min Mat Mat Fac Fac Was Fac Low Low Fac Upp Upp War Used RIF Installer . | . . . . . . . . . . . . . . . Robots Hacked . | . . . . . . . . . . . . . . . Non-combat . | . . . . . . . . . . . . . . . Combat . | . . . . . . . . . . . . . . . Robot Hacks Applied . | . . . . . . . . . . . . . . . Relay Couplers Released . | . . . . . . . . . . . . . . . Fabnet Peak Effective % . | . . . . . . . . . . . . . . . Robots Rewired 1 | . . . . . . . . . 1 . . . . . Allies Hacked . | . . . . . . . . . . . . . . . Hacks Repelled . | . . . . . . . . . . . . . . . Allies | -11 -10 -10 -9 -8 -7 -6 -6 -6 -6 -6 -5 -5 -5 -5 -------- Run | Scr Mat Min Mat Mat Fac Fac Was Fac Low Low Fac Upp Upp War Total Allies 1 | . . . . . . . . . 1 . . . . . Largest Group 1 | . . . . . . . . . 1 1 1 . . . Highest-Rated Group 30 | . . . . . . . . . 30 30 30 . . . Highest-Rated Ally 30 | . . . . . . . . . 30 30 30 . . . Total Orders 1 | . . . . . . . . . . . . . . 1 EXPLORE 1 | . . . . . . . . . . . . . . 1 Ally Attacks 11 | . . . . . . . . . . . 11 . . . Total Damage 299 | . . . . . . . . . . . 299 . . . Kills 1 | . . . . . . . . . . . 1 . . . Allies Corrupted . | . . . . . . . . . . . . . . . Allies Melted 1 | . . . . . . . . . . . . . . 1 Intel | -11 -10 -10 -9 -8 -7 -6 -6 -6 -6 -6 -5 -5 -5 -5 ------- Run | Scr Mat Min Mat Mat Fac Fac Was Fac Low Low Fac Upp Upp War Robot Analysis Total . | . . . . . . . . . . . . . . . Derelict Logs Recovered 5 | . . . . . . . . . 1 1 . 2 1 . Drone Launches 1 | . . . . . . . . . . . . . . 1 Drone Recoveries . | . . . . . . . . . . . . . . . Exploration | -11 -10 -10 -9 -8 -7 -6 -6 -6 -6 -6 -5 -5 -5 -5 ------------- Run | Scr Mat Min Mat Mat Fac Fac Was Fac Low Low Fac Upp Upp War Turns Passed 13397 | 87 569 958 229 1226 2418 725 169 1166 1206 197 801 1434 456 1756 Spaces Moved 8283 | 46 307 535 143 566 1208 395 174 873 852 158 510 1050 338 1128 Core 220 | 2 2 2 . . . . 143 71 . . . . . . Treads 2882 | 44 305 506 . 299 1208 395 31 . . . . . . 94 Legs 5181 | . . 27 143 267 . . . 802 852 158 510 1050 338 1034 Wheels . | . . . . . . . . . . . . . . . Hover . | . . . . . . . . . . . . . . . Flight . | . . . . . . . . . . . . . . . Fastest Speed 50 | 50 160 120 120 120 152 152 50 50 123 123 120 120 120 95 Average Speed 132 | 155 160 158 120 141 154 160 70 117 127 123 121 120 120 120 Slowest Speed 260 | 160 250 250 120 190 155 240 165 190 195 123 122 120 120 260 Overloaded Moves . | . . . . . . . . . . . . . . . Propulsion Burnouts . | . . . . . . . . . . . . . . . Robots Hopped . | . . . . . . . . . . . . . . . Cave-ins Triggered . | . . . . . . . . . . . . . . . Exploration Rate (%) 45 | 4 49 68 18 38 27 10 82 16 90 21 11 97 54 96 Regions Visited 14 Branch Regions 6 Pre-discovered Areas 1 | . . . . . . . . . . . . 1 . . Known Exits Taken 12 | 1 1 1 1 1 1 . . 1 1 1 1 1 1 . Unknown Exits Taken . | . . . . . . . . . . . . . . . Scrap Searched 9 | . . 1 . . . . . . 4 . . 3 1 . Spaces Dug . | . . . . . . . . . . . . . . . Terrain Destroyed 174 | . . . . 2 7 . . 1 1 . . 21 5 137 Melee . | . . . . . . . . . . . . . . . Projectile 10 | . . . . 2 . . . 1 1 . . . 5 1 AOE 164 | . . . . . 7 . . . . . . 21 . 136 Terrain Rammed . | . . . . . . . . . . . . . . . Walls Destroyed . | . . . . . . . . . . . . . . . Machines Disabled . | . . . . . . . . . . . . . . . Actions | -11 -10 -10 -9 -8 -7 -6 -6 -6 -6 -6 -5 -5 -5 -5 --------- Run | Scr Mat Min Mat Mat Fac Fac Was Fac Low Low Fac Upp Upp War Total 9943 | 58 353 593 184 911 1564 454 214 978 921 160 617 1133 358 1445 Wait 870 | . 16 23 30 260 204 26 22 53 33 . 41 6 . 156 Move 8270 | 45 306 534 142 565 1207 395 173 872 851 157 509 1049 337 1128 Hop . | . . . . . . . . . . . . . . . Pick Up 73 | 4 3 1 2 7 12 6 3 8 2 1 7 4 2 11 Fast Attach 102 | 8 12 3 . 7 8 2 1 16 4 . 5 6 . 30 Attach 58 | . 1 . 2 7 8 4 2 6 1 . 4 3 1 19 Detach 26 | 1 2 1 . 3 1 1 2 1 . 1 . . . 13 Swap 48 | . . 2 . 8 13 1 1 1 . 1 6 5 2 8 Drop 100 | . . 3 . 12 18 4 6 5 2 . 8 10 1 31 Fire 393 | . 13 26 8 42 93 15 4 16 27 . 37 50 15 47 Melee . | . . . . . . . . . . . . . . . Ram . | . . . . . . . . . . . . . . . Kick 2 | . . . . . . . . . . . . . . 2 Crush . | . . . . . . . . . . . . . . . Escape Stasis . | . . . . . . . . . . . . . . . Rewire 1 | . . . . . . . . . 1 . . . . . Trap . | . . . . . . . . . . . . . . . Miscellaneous . | . . . . . . . . . . . . . . . Route ------- -11/Scrapyard -10/Materials (discovered 4 exits: *Mat x2 / *Min x2) -10/Mines -9/Materials -8/Materials -7/Factory (discovered 2 exits: *Fac x2) -6/Factory -6/Waste -6/Factory -6/Lower Caves -6/Lower Caves -5/Factory (discovered 2 exits: Fac / *Upp) -5/Upper Caves -5/Upper Caves (discovered 2 exits: *Fac / *War) -5/Warlord (discovered 1 exit: *Pro) History --------- Turn | Location | Event 62 | -11/Scrapyard | Identified exit to Materials 62 | -11/Scrapyard | Discovered exit to Materials (range 15) 88 | -11/Scrapyard | Entered Materials 88 | -10/Materials | Evolved 1 slot: Utility x1 318 | -10/Materials | Build established: Hacker-Mutant 403 | -10/Materials | Identified exit to Mines 403 | -10/Materials | Discovered exit to Mines (range 13) 421 | -10/Materials | Identified exit to Materials 421 | -10/Materials | Discovered exit to Materials (range 15) 589 | -10/Materials | Discovered exit to Mines (range 6) 640 | -10/Materials | Discovered exit to Materials (range 16) 657 | -10/Materials | Entered Mines 664 | -10/Mines | Received a Rocket Launcher from a helpful Derelict 953 | -10/Mines | Found a hidden stash of uninstalled traps 1070 | -10/Mines | Discovered exit to Materials (range 5) 1155 | -10/Mines | Found a damaged Exp. Sensor Array with a note attached 1159 | -10/Mines | Found Prototype Device 1159 | -10/Mines | Identified Exp. Sensor Array 1257 | -10/Mines | Assembled infested the area 1262 | -10/Mines | Assisted by a Guerilla fighting off Assembled 1603 | -10/Mines | Lost 3 parts (2n1u) 1615 | -10/Mines | Entered Materials 1615 | -9/Materials | Evolved 2 slots: Power x1, Utility x1 1826 | -9/Materials | Identified exit to Materials 1826 | -9/Materials | Discovered exit to Materials (range 15) 1844 | -9/Materials | Entered another Materials area 1844 | -8/Materials | Evolved 2 slots: Utility x2 1906 | -8/Materials | Build established: Hacker-Skirmisher 2370 | -8/Materials | Identified exit to Factory 2370 | -8/Materials | Discovered exit to Factory (range 10) 2679 | -8/Materials | Garrison activated, responded to threat 2766 | -8/Materials | Build established: Scavenger-Skirmisher 3070 | -8/Materials | Entered Factory 3070 | -7/Factory | Evolved 2 slots: Propulsion x1, Utility x1 4263 | -7/Factory | Identified exit to Factory 4263 | -7/Factory | Discovered exit to Factory (range 7) 5026 | -7/Factory | Lost 3 parts (1p2u) 5468 | -7/Factory | Discovered exit to Factory (range 12) 5488 | -7/Factory | Entered another Factory area 5488 | -6/Factory | Evolved 2 slots: Power x1, Utility x1 6213 | -6/Factory | Sucked down chute 6213 | -6/Factory | Entered Waste 6228 | -6/Waste | EMP discharged 6231 | -6/Waste | Spotted C-40 Crusher 6254 | -6/Waste | Spotted C-40 Crusher 6267 | -6/Waste | Crushed by Compactor (1 part destroyed, 2 dropped) 6270 | -6/Waste | Crushed by Compactor (1 part destroyed) 6273 | -6/Waste | Crushed by Compactor (1 part destroyed, 1 dropped) 6276 | -6/Waste | Crushed by Compactor (1 part destroyed, 2 dropped) 6277 | -6/Waste | Spotted C-40 Crusher 6285 | -6/Waste | Crushed by Compactor (1 part destroyed, 1 dropped) 6287 | -6/Waste | Spotted C-40 Crusher 6316 | -6/Waste | Lost 5 parts (1p3n1u) 6325 | -6/Waste | Spotted C-40 Crusher 6328 | -6/Waste | EMP discharged 6329 | -6/Waste | Crushed by Compactor (1 part destroyed) 6336 | -6/Waste | Spotted C-40 Crusher 6372 | -6/Waste | Identified exit to Factory 6372 | -6/Waste | Discovered exit to Factory (range 16) 6382 | -6/Waste | Entered Factory 6650 | -6/Factory | Build established: Hacker-Mutant 6776 | -6/Factory | Identified exit to Lower Caves 6776 | -6/Factory | Discovered exit to Lower Caves (range 15) 7548 | -6/Factory | Entered Lower Caves 7766 | -6/Lower Caves | Spotted B-75 Beast 8394 | -6/Lower Caves | Identified exit to Lower Caves 8394 | -6/Lower Caves | Discovered exit to Lower Caves (range 14) 8591 | -6/Lower Caves | Attracted the attention of an 0b10 outpost 8754 | -6/Lower Caves | Entered another Lower Caves area 8754 | -6/Lower Caves | Accompanied by 1 ally 8817 | -6/Lower Caves | Learned location of 1 exit from Factory 8899 | -6/Lower Caves | Encountered a Warlord checkpoint 8941 | -6/Lower Caves | Identified exit to Factory 8941 | -6/Lower Caves | Discovered exit to Factory (range 9) 8951 | -6/Lower Caves | Entered Factory 8951 | -5/Factory | Accompanied by 1 ally 8951 | -5/Factory | Evolved 2 slots: Propulsion x1, Utility x1 8952 | -5/Factory | Identified exit to Upper Caves 8953 | -5/Factory | Identified exit to Factory 9752 | -5/Factory | Entered Upper Caves 10052 | -5/Upper Caves | Identified exit to Upper Caves 10385 | -5/Upper Caves | Found Alien Artifact 10386 | -5/Upper Caves | Identified Dimensional Node Initializer 10386 | -5/Upper Caves | Initialized slip node 10445 | -5/Upper Caves | Build established: Scavenger-Mutant 10729 | -5/Upper Caves | Attracted the attention of an 0b10 base 11186 | -5/Upper Caves | Entered another Upper Caves area 11186 | -5/Upper Caves | Discovered exit to Factory (range 5) 11518 | -5/Upper Caves | Learned 4 Factory zone layouts 11626 | -5/Upper Caves | Identified exit to Warlord 11626 | -5/Upper Caves | Discovered exit to Warlord (range 14) 11642 | -5/Upper Caves | Entered Warlord 11746 | -5/Warlord | Identified exit to Proximity Caves 11746 | -5/Warlord | Discovered exit to Proximity Caves (range 8) 11804 | -5/Warlord | System corruption cleaned by Quarantine Array 11945 | -5/Warlord | Found Prototype Device 11945 | -5/Warlord | Identified Wardrone Bay 12296 | -5/Warlord | Visited the Vortex Lab 12308 | -5/Warlord | Warlord's base attacked by MAIN.C 12310 | -5/Warlord | Found Prototype Launcher 12310 | -5/Warlord | Identified Vortex Catalyst Activator 12507 | -5/Warlord | Met Warlord 12658 | -5/Warlord | Warlord forces counterattacked 12692 | -5/Warlord | Spotted Executioner 12719 | -5/Warlord | Spotted Executioner 12732 | -5/Warlord | Destroyed Executioner 12743 | -5/Warlord | Spotted Executioner 12743 | -5/Warlord | Spotted Executioner 12773 | -5/Warlord | Destroyed Executioner 12808 | -5/Warlord | Lost 3 parts (2n1u) 12824 | -5/Warlord | Spotted Striker 12825 | -5/Warlord | Destroyed Striker 12826 | -5/Warlord | Spotted Striker 12846 | -5/Warlord | Destroyed 13 combat bots 12848 | -5/Warlord | Destroyed Striker 12908 | -5/Warlord | Spotted Executioner 12908 | -5/Warlord | Spotted Striker 12940 | -5/Warlord | Destroyed Striker 12972 | -5/Warlord | Destroyed Executioner 12983 | -5/Warlord | Warlord base infiltrated, sounded retreat 12993 | -5/Warlord | Destroyed 13 combat bots 13002 | -5/Warlord | Lost 4 parts (1n2u1w) 13010 | -5/Warlord | Spotted B-75 Beast 13010 | -5/Warlord | Spotted B-86 Titan 13012 | -5/Warlord | Destroyed Striker 13117 | -5/Warlord | Spotted Striker 13174 | -5/Warlord | Found Prototype Device 13174 | -5/Warlord | Identified Exp. Shock Absorption System 13281 | -5/Warlord | Spotted Executioner 13284 | -5/Warlord | Core integrity fell below 50% 13284 | -5/Warlord | Spotted Striker 13287 | -5/Warlord | Spotted Striker 13293 | -5/Warlord | Spotted Striker 13307 | -5/Warlord | Spotted Executioner 13338 | -5/Warlord | Destroyed Striker 13356 | -5/Warlord | Spotted Executioner 13379 | -5/Warlord | Core integrity fell below 20% 13389 | -5/Warlord | Spotted Striker 13398 | -5/Warlord | Destroyed by X-77 Beamer with Gatling Laser Last Messages --------------- 13383_ Hvy. Beamcaster destroyed. 13384_ P-70 Sage resets Executioner, system corruption cleaned. 13384_ Slug penetrates Wall. 13390_ Lgt. Angular Momentum Engine destroyed. 13390_ Critical hit (Burn: +37). 13392_ Penetrated by Slug. 13393_ Slug penetrates Wall. 13393_ Critical hit (Destroy). 13393_ Enh. Biometal Leg destroyed. 13395_ Imp. Deuterium Engine destroyed. 13395_ Critical hit (Burn: +37). 13396_ Slug penetrates Wall. 13396_ Penetrated by Slug. 13396_ Slug penetrates Wall. 13396_ Enh. Biometal Leg destroyed. 13396_ Penetrated by Slug. 13398_ ANNOUNCEMENT: MAIN.C reinforcements approaching through caves, arriving soon. 13398_ Centrium Medium Armor Plating destroyed. 13398_ Slug penetrates Wall. Map ----- +----------------------------------------------------+ | #?# # ^ """ ########?????????????? | | #?# # """ #?###????????????????? | | #?# # ^ """ ###"##???????????????? | | #?#+##+######+## ^ """ # &#???????????????? | | #?# ## ^ """ # &#???????????????? | | ### ## ^^ # #???????????????? | | ## ##+##+##+#### # #???????????????? | | ## # #??# ###"+###?????????????? | | ## # """ #??# ## #?????????????? | | ## # """ #??# #?????????????? | | ## # """ #??# #?????????????? | | ## # #??# % #?????###?????? | | ## / """ #??#+####+####### #???##""#?????? | | ## # """ #??# ####%! ######"""#?????? | | ?# # """ #??# ## #g ### #="""#?????? | | ?# ^# #??# #?#; ## #*%""#?????? | | ?#^^############# ! [###;gK ###%[[[""#?????? | | ?# + ## ! ;;;; gg###=;%[""#####?# | | ?# ## ## !^] ;%![]*%==%*%=%""%%[ ### | | ?# ## ## [ ; !%*!]%!=%!%!""%=!%! | | ## ## #####;###;;;; =%=%=! !%[==%"=%%%% | | # # """ """ #?# %=!=%%%!!Kg%/%%=[%% ! | | # """ """ #?# [[%%%%%hg%g*% %[% */! | | # """ """ ### *[ !s!*=s !=*%%%!%=%![% | | # # + !%= %%[%=!%%*!%%%% == | | ##+#######+##### @ # *!%=%/=%!!==""%!%! %= | | # % % [*!%=%=*=%%!""%=%% * | | # [ %]===%%%!#%%*""!![ "" | | # g * !*%=%!![[;;#####""####### | | + g g[%% %!%][=%==###???#""#?????? | | #######x;;sE;; = *!=%!=%[% #???#""#?????? | | #??# # ;% !=*=* ;##???#""#?????? | | #??# E # ; ] ;#????#""#?????? | | #??# #;; % """ % #????#""#?????? | | ########??# ;# % """ #?????###?????? | | ??????????# #; """ ##????????????? | | ??????????# #; m ;#????????????? | | #########?# ## g l ########??????? | | "" " " ### ##gg g """" %; ###????? | | %# # ## b """"" #????? | | *=%#==#/#######p "" #????? | | [%*=%%* ph % # #????? | | %%+%[ E = #????? | | %+ [%=% #????? | | %###""###"#####+####;+#### #????? | | %!##" # ### #????? | | """" %### # ## #????? | | #### ##" # ]] ### # #????? | | ??# ##"= ] ! #?# ###????? | | ??" ] ### !! #?# #??????? | +----------------------------------------------------+ Best States ------------- Heat Dissipation 113 Coolant Potential 65 Energy Generation 33 Energy Capacity 1560 Matter Stores 300 Matter Capacity 300 Sight Range 23 Robot Scan Range 20 Terrain Scan Range 20 Terrain Scan Density 10 Armor Coverage 825 Resistance: KI 60 Resistance: TH 55 Resistance: EX 35 Resistance: EM 35 Resistance: I 35 Resistance: S 35 Resistance: P 35 Power Shielding 90 Phase Shifting 5 Evasion (%) 60 Targeting Accuracy 8 Melee Accuracy 5 Target Analysis 8 Recoil Reduction 6 Particle Charging 15 Offensive Hacking 32 Item Schematics ----------------- Sensor Array | -7/Factory | Scanalyzed Robot Schematics ------------------ None Fabricated ------------ Nothing Alien Tech Used ----------------- Dimensional Node Initializer Achievements -------------- A Powerful Ally? Alien Tech Challenges ------------ None Game ------ Seed ThermicSurveybotExtractor Manual? 0 Play Time 02:27:01 Cumulative 32.0 hours Start 2022.04.03 @ 16:42:58 End 2022.04.03 @ 19:42:40 Sessions 1 Manual Loads 0 Difficulty Explorer Special Mode None Game No. 7 Rogue 0 Adventurer 1 Explorer 6 Win Type - Total 1 Types 1/0/0/0/0/0/0/0/0 Lore% 22 Gallery% 37 Achievement% 31 Wizard Run 0 Options --------- ASCII 0 Keyboard 0 Movement Arrows Keybinds 0 Fullscreen 0 Font 14/Terminus Map View 76x50 Tactical HUD 1 Map Filters NONE Filters NONE Steam 1 RUN: 699aa0dd-1afd-471b-982c-d476a91e94ee